lending/lending_fUSD_20250913
["ID","MTS","AMOUNT","RATE_DAILY","PERIOD"]
[385285934,1757746233336,-2000.0,0.00031,2]
[385285936,1757746233345,-2159.52337561,0.00031,2]
[385285938,1757746233355,-9327.97214039,0.00031,2]
[385285940,1757746233366,-646.10939982,0.00031,2]
[385285943,1757746233397,-500.0,0.00023322,2]
[385285945,1757746233406,-7319.25809978,0.00031,2]
[385285947,1757746233417,-1914.75277448,0.00031,2]
[385285951,1757746233445,-500.0,0.00023322,2]
[385285952,1757746233454,-331.78944447,0.00031,2]
[385285954,1757746233466,-5460.11814106,0.00031,2]
[385285956,1757746233475,-8995.70627887,0.00031,3]
[385285959,1757746233494,-465.57819679,0.00023322,2]
[385285968,1757746238286,-34.42180321,0.00023322,2]
[385285969,1757746238295,-500.0,0.00023322,2]
[385285970,1757746238304,-24.61954112,0.00023322,2]
[385285971,1757746238516,-19.59660628,0.00023322,2]
[385285972,1757746238528,-455.7838526,0.00023322,2]
[385285973,1757746238538,-500.0,0.00023322,2]
[385285974,1757746238549,-500.0,0.00023322,2]
[385285975,1757746238560,-500.0,0.00023322,2]
[385285976,1757746238569,-500.0,0.00023322,2]
[385285977,1757746238578,-500.0,0.00023322,2]
[385285978,1757746238587,-500.0,0.00023322,2]
[385285979,1757746238596,-500.0,0.00023322,2]
[385285980,1757746238606,-500.0,0.00023322,2]
[385285981,1757746238615,-500.0,0.00023322,2]
[385285983,1757746238624,-500.0,0.00023322,2]
[385285984,1757746238634,-500.0,0.00023322,2]
[385285985,1757746238643,-500.0,0.00023322,2]
[385285986,1757746238653,-152.25104908,0.00023322,2]
[385285987,1757746238663,-15908.18372113,0.00031,3]
[385285988,1757746238672,-168.316,0.00031058,28]
[385285990,1757746238682,-200.0,0.000311,11]
[385285992,1757746238691,-151.41,0.00031178,2]
[385285994,1757746238702,-500.0,0.000312,11]
[385285996,1757746238711,-811.94560689,0.00031278,2]
[385285998,1757746238721,-700.0,0.000313,11]
[385286000,1757746238731,-10361.66180375,0.000313,14]
[385286001,1757746238822,-14448.2327591,0.000313,14]
[385286002,1757746238863,-1489.35543715,0.000313,14]
[385286003,1757746238872,-1000.0,0.000314,11]
[385286004,1757746238882,-1300.0,0.000315,11]
[385286005,1757746238892,-200.0,0.000316,11]
[385286006,1757746238901,-176.89,0.00031669,2]
[385286007,1757746238911,-200.0,0.000317,11]
[385286008,1757746238920,-622.82667902,0.00031743,2]
[385286009,1757746238929,-200.0,0.00031743,2]
[385286010,1757746238939,-350.6236767,0.00031753,2]
[385286011,1757746238948,-287.61899177,0.00031753,2]
[385286012,1757746238958,-1000.0,0.00031755,2]
[385286013,1757746238967,-811.94560689,0.00031759,2]
[385286014,1757746238976,-500.0,0.00031765,2]
[385286015,1757746238986,-33692.58811954,0.0003177,2]
[385286016,1757746238995,-5000.0,0.00031782,2]
[385286017,1757746239229,-500.0,0.00031799,2]
[385286018,1757746239239,-200.0,0.00031799,2]
[385286019,1757746239248,-150.0,0.00031799,2]
[385286020,1757746239257,-155.27779858,0.00031799,2]
[385286021,1757746239266,-150.0,0.00031799,2]
[385286022,1757746239275,-200.0,0.000318,11]
[385286023,1757746239284,-150.0,0.00031836,2]
[385286024,1757746239293,-265.34043225,0.00031838,2]
[385286025,1757746239302,-338.17898228,0.0003184,2]
[385286026,1757746239311,-411.01753231,0.00031843,2]
[385286027,1757746239320,-483.85608234,0.00031845,2]
[385286028,1757746239329,-297.07,0.00031845,2]
[385286029,1757746239339,-556.69463237,0.00031848,2]
[385286030,1757746239348,-629.5331824,0.0003185,2]
[385286031,1757746239357,-702.37173243,0.00031853,2]
[385286032,1757746239367,-621.85,0.00031855,2]
[385286033,1757746239376,-742.19,0.00031855,2]
[385286034,1757746239386,-767.31,0.00031855,2]
[385286035,1757746239395,-400.0,0.00031855,2]
[385286036,1757746239404,-887.72,0.00031855,2]
[385286037,1757746239413,-612.07,0.00031855,2]
[385286038,1757746239422,-934.74,0.00031855,2]
[385286039,1757746239431,-503.5,0.00031855,2]
[385286040,1757746239440,-400.0,0.00031855,2]
[385286041,1757746239449,-513.09,0.00031855,2]
[385286042,1757746239458,-659.52,0.00031855,2]
[385286043,1757746239467,-567.63,0.00031855,2]
[385286044,1757746239476,-465.58,0.00031855,2]
[385286045,1757746239485,-545.61,0.00031855,2]
[385286046,1757746239494,-172.67456968,0.00031855,2]
[385286047,1757746239503,-1013.33,0.00031855,2]
[385286048,1757746239512,-400.0,0.00031855,2]
[385286049,1757746239521,-400.0,0.00031855,2]
[385286050,1757746239530,-810.94,0.00031855,2]
[385286051,1757746239539,-400.0,0.00031855,2]
[385286052,1757746239548,-507.46,0.00031855,2]
[385286053,1757746239557,-702.0,0.00031855,2]
[385286054,1757746239566,-833.23,0.00031855,2]
[385286055,1757746239576,-706.72,0.00031855,2]
[385286056,1757746239586,-922.72,0.00031855,2]
[385286057,1757746239595,-1063.63,0.00031855,2]
[385286058,1757746239605,-613.09,0.00031855,2]
[385286059,1757746239614,-400.0,0.00031855,2]
[385286060,1757746239624,-400.0,0.00031855,2]
[385286061,1757746239634,-662.18,0.00031855,2]
[385286062,1757746239643,-400.0,0.00031855,2]
[385286063,1757746239656,-400.0,0.00031855,2]
[385286064,1757746239666,-607.25,0.00031855,2]
[385286065,1757746239676,-300.0,0.00031855,2]
[385286066,1757746239686,-671.26,0.00031855,2]
[385286067,1757746239696,-400.0,0.00031855,2]
[385286068,1757746239706,-702.19,0.00031855,2]
[385286069,1757746239716,-485.08,0.00031855,2]
[385286070,1757746239725,-400.0,0.00031855,2]
[385286071,1757746239734,-400.0,0.00031855,2]
[385286072,1757746239744,-750.5,0.00031855,2]
[385286073,1757746239754,-647.09,0.00031855,2]
[385286074,1757746239763,-766.47,0.00031855,2]
[385286075,1757746239773,-400.0,0.00031855,2]
[385286076,1757746239783,-400.0,0.00031855,2]
[385286077,1757746239792,-400.0,0.00031855,2]
[385286078,1757746239802,-400.0,0.00031855,2]
[385286079,1757746239811,-400.0,0.00031855,2]
[385286080,1757746239821,-400.0,0.00031855,2]
[385286081,1757746239831,-803.55,0.00031855,2]
[385286082,1757746239840,-788.74,0.00031855,2]
[385286083,1757746239849,-400.0,0.00031855,2]
[385286084,1757746239858,-652.17,0.00031855,2]
[385286085,1757746239868,-797.92,0.00031855,2]
[385286086,1757746239878,-437.69,0.00031855,2]
[385286087,1757746239889,-669.75,0.00031855,2]
[385286088,1757746239899,-657.77,0.00031855,2]
[385286089,1757746239909,-400.0,0.00031855,2]
[385286090,1757746239918,-400.0,0.00031855,2]
[385286091,1757746239928,-930.61,0.00031855,2]
[385286092,1757746239937,-763.23,0.00031855,2]
[385286093,1757746239947,-681.15,0.00031855,2]
[385286094,1757746239956,-510.72,0.00031855,2]
[385286095,1757746239965,-762.03,0.00031855,2]
[385286096,1757746239975,-631.54,0.00031855,2]
[385286097,1757746239985,-400.0,0.00031855,2]
[385286098,1757746239995,-400.0,0.00031855,2]
[385286099,1757746240004,-1135.73,0.00031855,2]
[385286100,1757746240014,-400.0,0.00031855,2]
[385286101,1757746240023,-735.09,0.00031855,2]
[385286102,1757746240033,-756.59,0.00031855,2]
[385286103,1757746240043,-736.53,0.00031855,2]
[385286104,1757746240053,-772.33,0.00031855,2]
[385286105,1757746240063,-826.71,0.00031855,2]
[385286106,1757746240072,-520.59,0.00031855,2]
[385286107,1757746240083,-657.96,0.00031855,2]
[385286108,1757746240092,-743.85,0.00031855,2]
[385286109,1757746240102,-3025.89,0.00031855,2]
[385286110,1757746240111,-680.1,0.00031855,2]
[385286111,1757746240121,-780.39,0.00031855,2]
[385286112,1757746240130,-636.53,0.00031855,2]
[385286113,1757746240140,-400.0,0.00031855,2]
[385286114,1757746240151,-970.93,0.00031855,2]
[385286115,1757746240160,-400.0,0.00031855,2]
[385286116,1757746240170,-706.9,0.00031855,2]
[385286117,1757746240179,-400.0,0.00031855,2]
[385286118,1757746240189,-500.0,0.00031855,2]
[385286119,1757746240198,-765.24,0.00031855,2]
[385286120,1757746240207,-446.72,0.00031855,2]
[385286121,1757746240216,-745.9,0.00031855,2]
[385286122,1757746240227,-648.03,0.00031855,2]
[385286124,1757746240236,-400.0,0.00031855,2]
[385286126,1757746240245,-1000.0,0.00031855,7]
[385286128,1757746240254,-1384.59,0.00031855,2]
[385286130,1757746240263,-875.34,0.00031855,2]
[385286132,1757746240272,-775.21028246,0.00031855,2]
[385286134,1757746240282,-1115.09,0.00031855,2]
[385286135,1757746240291,-844.4,0.00031855,2]
[385286136,1757746240300,-400.0,0.00031855,2]
[385286137,1757746240309,-848.04883248,0.00031857,2]
[385286138,1757746240319,-297.07,0.00031857,2]
[385286139,1757746240328,-300.0,0.00031866,10]
[385286140,1757746240337,-500.0,0.00031867,2]
[385286141,1757746240347,-555.82,0.00031867,2]
[385286142,1757746240356,-400.0,0.00031867,2]
[385286143,1757746240365,-400.0,0.00031867,2]
[385286144,1757746240375,-734.87,0.00031867,2]
[385286145,1757746240385,-400.0,0.00031867,2]
[385286146,1757746240395,-400.0,0.00031867,2]
[385286147,1757746240404,-400.0,0.00031867,2]
[385286148,1757746240414,-400.0,0.00031867,2]
[385286149,1757746240423,-400.0,0.00031867,2]
[385286150,1757746240433,-424.98735422,0.00031867,2]
[385286151,1757746240442,-17729.57663483,0.00031867,2]
[385286152,1757746240451,-33206.35839174,0.00031867,2]
[385286154,1757746241031,-452.89262675,0.00031867,2]
[385286155,1757746241374,-1638.92766655,0.00031867,2]
[385286156,1757746241386,-13494.97866212,0.00031867,2]
[385286160,1757746243309,-61.91644643,0.00031867,2]
[385286161,1757746244073,-338.08355357,0.00031867,2]
[385286162,1757746244084,-400.0,0.00031867,2]
[385286163,1757746244093,-627.73949051,0.00031867,2]
[385286174,1757746246302,-400.0,0.00031867,2]
[385286175,1757746246311,-400.0,0.00031867,2]
[385286176,1757746246321,-396.28859204,0.00031867,2]
[385286177,1757746246415,-1333.20533533,0.00031867,2]
[385286178,1757746246475,-759.02561392,0.00031867,2]
[385286179,1757746246584,-1661.39754871,0.00031867,2]
[385286180,1757746246596,-28885.6787027,0.00031867,2]
[385286258,1757746537822,160.59,0.00016712,2]
[385286259,1757746790777,333.0,0.00030136,120]
[385286261,1757747190482,501.82,0.00015275,2]
[385286262,1757747190682,501.82,0.00016079,2]
[385286263,1757747190870,501.82,0.00016883,2]
[385286264,1757747191124,501.82,0.00017687,2]
[385286265,1757747191305,501.82,0.00018491,2]
[385286266,1757747191964,-175.68895682,0.00019295,2]
[385286267,1757747198862,-216.42588006,0.00019295,2]
[385286268,1757747206687,-109.70516312,0.00019295,2]
[385286269,1757747356151,-501.82,0.00020099,2]
[385286270,1757747370187,-501.82,0.00020903,2]
[385286271,1757747370209,-501.82,0.00021707,2]
[385286272,1757747370230,-501.82,0.00022511,2]
[385286273,1757747370251,-191.92617758,0.0002312,2]
[385286274,1757747370272,-300.0,0.00023217,2]
[385286275,1757747370295,-500.0,0.00023218,2]
[385286276,1757747370317,-500.0,0.00023218,2]
[385286277,1757747370339,-500.0,0.00023218,2]
[385286278,1757747370361,-500.0,0.00023218,2]
[385286279,1757747370383,-500.0,0.00023218,2]
[385286280,1757747370405,-347.65630442,0.00023218,2]
[385286281,1757747376687,250.0,0.00015,2]
[385286284,1757747431608,-419.52292648,0.00023217,2]
[385286335,1757747432727,161.33012725,0.0002,3]
[385286336,1757747432792,-489.90269278,0.00023217,2]
[385286337,1757747432804,-290.57438074,0.00023217,2]
[385286338,1757747432814,-300.0,0.00023217,2]
[385286339,1757747432824,-500.0,0.00023217,2]
[385286340,1757747432833,-500.0,0.00023217,2]
[385286341,1757747432842,-500.0,0.00023217,2]
[385286342,1757747432851,-500.0,0.00023217,2]
[385286343,1757747432860,-415.23189074,0.0002322,2]
[385286344,1757747432871,-84.76810926,0.0002322,2]
[385286345,1757747432881,-500.0,0.0002322,2]
[385286346,1757747432890,-500.0,0.0002322,2]
[385286347,1757747432899,-500.0,0.0002322,2]
[385286348,1757747432908,-500.0,0.0002322,2]
[385286349,1757747432917,-234.71438616,0.0002322,2]
[385286350,1757747432926,-487.05822094,0.00023315,2]
[385286351,1757747432938,-14.76177906,0.00023315,2]
[385286352,1757747432947,-501.82,0.00024119,2]
[385286353,1757747432957,-706.3886322,0.000249,2]
[385286357,1757747437666,-500.0,0.00023217,2]
[385286358,1757747437677,-500.0,0.00023217,2]
[385286359,1757747437687,-500.0,0.00023217,2]
[385286360,1757747437698,-500.0,0.00023217,2]
[385286361,1757747437709,-500.0,0.00023217,2]
[385286364,1757747437961,-500.0,0.00023217,2]
[385286365,1757747437975,-589.40776254,0.00023217,2]
[385286367,1757747437986,-500.0,0.00023217,2]
[385286369,1757747437995,-500.0,0.00023217,2]
[385286372,1757747438005,-500.0,0.00023217,2]
[385286373,1757747438014,-115.54604029,0.00023217,2]
[385286375,1757747438025,-384.45395971,0.00023217,2]
[385286376,1757747438035,-500.0,0.00023217,2]
[385286377,1757747438045,-500.0,0.00023217,2]
[385286378,1757747438054,-500.0,0.00023217,2]
[385286379,1757747438063,-500.0,0.00023217,2]
[385286380,1757747438073,-500.0,0.00023217,2]
[385286381,1757747438083,-500.0,0.00023217,2]
[385286382,1757747438092,-500.0,0.00023217,2]
[385286383,1757747438101,-500.0,0.00023217,2]
[385286384,1757747438110,-684.52677576,0.000249,2]
[385286385,1757747438122,-501.82,0.00024922,2]
[385286386,1757747438132,-250.0,0.00025539,2]
[385286387,1757747438141,-501.82,0.00025726,2]
[385286388,1757747438150,-501.82,0.0002653,2]
[385286389,1757747438159,-501.82,0.00027334,2]
[385286390,1757747438169,-165.01,0.00027397,2]
[385286391,1757747438178,-500.0,0.00028,5]
[385286392,1757747438188,-500.0,0.00028,5]
[385286393,1757747438198,-500.0,0.00028,5]
[385286394,1757747438208,-500.0,0.00028,5]
[385286395,1757747438218,-500.0,0.00028,5]
[385286396,1757747438228,-500.0,0.00028,5]
[385286397,1757747438237,-500.0,0.00028,5]
[385286398,1757747438247,-500.0,0.00028,5]
[385286399,1757747438256,-500.0,0.00028,5]
[385286400,1757747438266,-500.0,0.00028,5]
[385286401,1757747438275,-500.0,0.00028,5]
[385286402,1757747438284,-500.0,0.00028,5]
[385286403,1757747438293,-0.27355219,0.00028,5]
[385286404,1757747438305,-499.72644781,0.00028,5]
[385286405,1757747438314,-500.0,0.00028,5]
[385286406,1757747438323,-500.0,0.00028,5]
[385286407,1757747438332,-501.82,0.00028138,2]
[385286408,1757747438342,-500.0,0.00028274,5]
[385286409,1757747438351,-500.0,0.00028274,5]
[385286410,1757747438360,-500.0,0.00028274,5]
[385286411,1757747438369,-500.0,0.00028274,5]
[385286412,1757747438379,-500.0,0.00028274,5]
[385286413,1757747438388,-500.0,0.00028274,5]
[385286414,1757747438397,-500.0,0.00028274,5]
[385286415,1757747438407,-500.0,0.00028274,5]
[385286416,1757747438416,-500.0,0.00028274,5]
[385286417,1757747438425,-500.0,0.00028274,5]
[385286418,1757747438434,-500.0,0.00028274,5]
[385286419,1757747438443,-500.0,0.00028274,5]
[385286420,1757747438452,-500.0,0.00028274,5]
[385286421,1757747438461,-150.00000001,0.000288,4]
[385286422,1757747438471,-501.82,0.00028942,2]
[385286423,1757747438480,-163.1,0.00029509,30]
[385286424,1757747438489,-176.89,0.0002962,2]
[385286425,1757747438499,-501.82,0.00029746,2]
[385286426,1757747438507,-626.0,0.000302,2]
[385286427,1757747438516,-497.72417132,0.0003036,2]
[385286428,1757747438525,-277.35679052,0.0003036,2]
[385286429,1757747438534,-501.82,0.0003055,2]
[385286430,1757747438547,-203.69568101,0.00030791,2]
[385286431,1757747438556,-400.58815413,0.00030791,2]
[385286432,1757747438566,-333.0,0.00030792,2]
[385286433,1757747438575,-12563.17103596,0.00030792,2]
[385286434,1757747438585,-200.0,0.00030793,2]
[385286435,1757747438594,-5000.0,0.00030858,2]
[385286436,1757747438603,-173.48,0.00030863,2]
[385286437,1757747438613,-333.0,0.00030867,7]
[385286438,1757747438623,-333.0,0.00030867,2]
[385286439,1757747438632,-150.0,0.00030867,7]
[385286440,1757747438641,-250.0,0.00030869,2]
[385286441,1757747438651,-1355.0,0.000312,2]
[385286442,1757747438660,-15050.922,0.00031358,2]
[385286443,1757747438670,-4168.0,0.00031358,2]
[385286444,1757747438679,-6173.0,0.00031358,2]
[385286445,1757747438688,-726.0,0.00031358,2]
[385286446,1757747438697,-614.0,0.0003138,2]
[385286447,1757747438706,-30452.17693504,0.00031389,2]
[385286448,1757747438751,-854.00691663,0.00031389,2]
[385286449,1757747438766,-1313.85697867,0.00031389,2]
[385286450,1757747438776,-3962.55749776,0.00031389,2]
[385286451,1757747438787,-4169.96916336,0.00031389,2]
[385286452,1757747438798,-1210.62000425,0.00031389,2]
[385286453,1757747438809,-3158.92017496,0.00031389,2]
[385286454,1757747438820,-4184.156181,0.00031389,2]
[385286475,1757747445760,-500.0,0.00023217,2]
[385286476,1757747445770,-250.0,0.00023217,2]
[385286477,1757747445780,-500.0,0.00023217,2]
[385286478,1757747445790,-163.32879999,0.00023217,2]
[385286479,1757747445846,-336.67120001,0.00023217,2]
[385286480,1757747445856,-500.0,0.00023217,2]
[385286481,1757747445866,-500.0,0.00028,5]
[385286482,1757747445875,-5453.99093373,0.00031389,2]
[385286483,1757747445885,-200.0,0.00031727,2]
[385286484,1757747445894,-287.61899177,0.00031729,2]
[385286485,1757747445903,-231.03641322,0.00031755,2]
[385286486,1757747445913,-287.90226648,0.00031765,2]
[385286487,1757747445922,-168.31658655,0.00031766,30]
[385286488,1757747445931,-155.31832481,0.00031766,2]
[385286489,1757747445940,-5000.0,0.00031767,2]
[385286490,1757747445949,-1396.0958,0.00031767,2]
[385286491,1757747445958,-231.03641317,0.00031771,2]
[385286492,1757747445968,-1734.26354552,0.00031776,2]
[385286495,1757747446002,-4508.68655448,0.00031776,2]
[385286497,1757747446011,-287.90226645,0.0003178,2]
[385286499,1757747446023,-231.03641317,0.00031787,2]
[385286501,1757747446032,-287.90226645,0.00031795,2]
[385286503,1757747446041,-231.03641317,0.00031803,2]
[385286505,1757747446050,-287.90226645,0.0003181,2]
[385286507,1757747446059,-231.03641317,0.00031819,2]
[385286509,1757747446068,-287.90226645,0.00031825,2]
[385286511,1757747446077,-150.0,0.00031833,2]
[385286513,1757747446086,-231.03641317,0.00031836,2]
[385286515,1757747446095,-265.26086829,0.00031836,2]
[385286516,1757747446104,-338.07757723,0.00031838,2]
[385286518,1757747446113,-287.90226645,0.0003184,2]
[385286519,1757747446127,-410.89428617,0.00031841,2]
[385286520,1757747446136,-483.71099511,0.00031843,2]
[385286521,1757747446145,-300.0,0.00031844,2]
[385286522,1757747446155,-400.0,0.00031844,2]
[385286523,1757747446165,-275.7921616,0.00031844,2]
[385286524,1757747446174,-400.0,0.00031844,2]
[385286525,1757747446183,-400.0,0.00031844,2]
[385286526,1757747446193,-400.0,0.00031844,2]
[385286527,1757747446202,-401.72322404,0.00031844,2]
[385286528,1757747446211,-400.0,0.00031844,2]
[385286529,1757747446221,-400.0,0.00031844,2]
[385286530,1757747446230,-400.0,0.00031844,2]
[385286531,1757747446240,-400.0,0.00031844,2]
[385286532,1757747446250,-400.0,0.00031844,2]
[385286533,1757747446259,-400.0,0.00031844,2]
[385286534,1757747446268,-400.0,0.00031844,2]
[385286535,1757747446278,-547.09,0.00031844,2]
[385286536,1757747446288,-1180.89,0.00031844,2]
[385286537,1757747446297,-673.1,0.00031844,2]
[385286538,1757747446306,-722.41049176,0.00031844,2]
[385286539,1757747583863,155.0812949,0.0002739,120]
[385286540,1757747707811,500.0,0.00013699,2]
[385286541,1757748320007,153.86,0.00015231,2]
[385286542,1757748320176,153.86,0.00016923,2]
[385286543,1757748320450,153.86,0.00018616,2]
[385286544,1757748353658,718.58519796,0.000191,2]
[385286549,1757748446082,-153.86,0.00020308,2]
[385286550,1757748446104,-250.0,0.00020654,2]
[385286551,1757748446126,-599.12470197,0.00021,2]
[385286557,1757748551064,-300.0,0.00019999,2]
[385286558,1757748551089,-500.0,0.00019999,2]
[385286559,1757748551110,-541.89532342,0.00019999,2]
[385286560,1757748551136,-500.0,0.00019999,2]
[385286561,1757748551160,-342.82036405,0.00019999,2]
[385286562,1757748551180,-5511.83821785,0.0002,2]
[385286570,1757748631980,-300.0,0.00019999,2]
[385286572,1757748631990,-1200.0,0.00019999,2]
[385286573,1757748631999,-3139.1973793,0.0002,2]
[385286574,1757748632011,-985.02434282,0.0002,2]
[385286575,1757748632022,-387.90061276,0.0002,2]
[385286576,1757748632033,-1508.40480003,0.0002,2]
[385286577,1757748632108,-450.0,0.0002,2]
[385286578,1757748632121,-441.78012812,0.0002,2]
[385286579,1757748632246,-11049.92842415,0.0002,2]
[385286580,1757748632255,-333.64809428,0.00021,2]
[385286586,1757748632318,-128.29030329,0.00021,2]
[385286588,1757748632327,-1200.0,0.00021881,2]
[385286589,1757748632337,-153.86,0.00022,2]
[385286590,1757748632346,-172.07220493,0.0002228,2]
[385286591,1757748632358,-250.0,0.00022339,2]
[385286592,1757748632367,-250.0,0.0002238,2]
[385286593,1757748632377,-153.86,0.00023693,2]
[385286594,1757748632387,-162.33,0.00023962,2]
[385286595,1757748632396,-1384.18773679,0.000249,2]
[385286596,1757748632406,-153.86,0.00025385,2]
[385286597,1757748632415,-153.86,0.00027077,2]
[385286598,1757748632425,-166.17,0.00027397,2]
[385286599,1757748632435,-150.0,0.00027397,5]
[385286600,1757748632444,-151.0,0.00027945,5]
[385286601,1757748632454,-805.10092131,0.00028,2]
[385286602,1757748632463,-152.0,0.00028493,5]
[385286603,1757748632472,-152.0,0.00028699,3]
[385286604,1757748632481,-153.86,0.0002877,2]
[385286605,1757748632491,-287.93348169,0.0002884,2]
[385286606,1757748632500,-72.84719118,0.00028886,2]
[385286607,1757748632512,-3672.75148156,0.00028886,2]
[385286608,1757748632523,-4575.83600864,0.00028886,2]
[385286609,1757748632536,-1392.68020677,0.00028886,2]
[385286612,1757748637847,-280.41170789,0.00028885,2]
[385286613,1757748637858,-1427.66829211,0.00028886,2]
[385286614,1757748638172,-975.47485061,0.00028886,2]
[385286620,1757748640147,-3438.87744533,0.00028886,2]
[385286621,1757748640156,-1427.0,0.00029,2]
[385286622,1757748640165,-150.93120865,0.00029041,5]
[385286623,1757748640174,-187.4,0.00029432,2]
[385286624,1757748640183,-1016.26,0.00029487,2]
[385286625,1757748640192,-1855.0,0.00029806,2]
[385286626,1757748640201,-163.1,0.00029806,30]
[385286627,1757748640210,-250.0,0.00029938,2]
[385286628,1757748640219,-5298.4,0.00029984,2]
[385286629,1757748640227,-277.35679052,0.00030329,2]
[385286630,1757748640236,-277.4,0.00030349,2]
[385286631,1757748640246,-150.0,0.00030423,7]
[385286632,1757748640255,-153.86,0.00030462,2]
[385286633,1757748640264,-159.58,0.00030462,2]
[385286634,1757748640273,-2970.78,0.00030532,2]
[385286635,1757748640283,-977.11,0.00030631,2]
[385286636,1757748640292,-666.0,0.00030675,3]
[385286637,1757748640302,-1156.74929764,0.00031,5]
[385286638,1757748640311,-578.0,0.00031,2]
[385286639,1757748640320,-441.78,0.00031041,2]
[385286640,1757748640330,-20964.2107024,0.00031244,2]
[385286641,1757748640339,-452.72,0.00031554,3]
[385286642,1757748640348,-452.68,0.00031555,3]
[385286643,1757748640357,-452.68,0.00031566,3]
[385286644,1757748640367,-185.482,0.00031567,29]
[385286645,1757748640376,-452.68,0.0003158,3]
[385286646,1757748640385,-200.0,0.00031662,2]
[385286647,1757748640395,-287.61899177,0.00031698,2]
[385286648,1757748640404,-1358.04,0.000317,3]
[385286649,1757748640413,-167.7145341,0.00031743,2]
[385286650,1757748640422,-549.56471286,0.00031744,2]
[385286651,1757748640432,-500.0,0.00031744,2]
[385286652,1757748640441,-699.44728465,0.00031753,26]
[385286653,1757748640451,-5000.0,0.00031755,2]
[385286654,1757748640460,-549.56471282,0.00031761,2]
[385286655,1757748640470,-157.90933766,0.00031766,3]
[385286656,1757748640743,-178.99601433,0.00031767,2]
[385286657,1757748640752,-167.7145341,0.00031774,2]
[385286658,1757748640762,-549.56471282,0.00031779,2]
[385286659,1757748640773,-549.56471282,0.00031796,2]
[385286660,1757748640785,-167.7145341,0.00031806,2]
[385286661,1757748640795,-549.56471282,0.00031813,2]
[385286662,1757748640804,-549.56471282,0.00031831,2]
[385286663,1757748640816,-150.0,0.00031834,2]
[385286664,1757748640826,-264.3753949,0.00031837,2]
[385286665,1757748640836,-167.7145341,0.00031837,2]
[385286666,1757748640846,-336.94903272,0.00031839,2]
[385286667,1757748640855,-409.52267053,0.00031841,2]
[385286668,1757748640865,-31938.8327712,0.00031843,2]
[385286669,1757748640875,-47908.2491568,0.00031843,2]
[385286670,1757748640885,-400.0,0.00031843,2]
[385286671,1757748640895,-10117.37217207,0.00031843,2]
[385286672,1757748640905,-233690.65220733,0.00031843,2]
[385286673,1757748640915,-74523.9431328,0.00031844,2]
[385286674,1757748640927,-1262.26160684,0.00031844,2]
[385286675,1757748640937,-200.0,0.00031844,2]
[385286676,1757748640946,-151.0,0.00031844,7]
[385286677,1757748640955,-151.0,0.00031844,7]
[385286678,1757748640964,-482.09630835,0.00031844,2]
[385286679,1757748640973,-5323.1387952,0.00031845,2]
[385286680,1757748640982,-151.0,0.00031845,7]
[385286681,1757748640991,-53231.387952,0.00031845,2]
[385286682,1757748641000,-554.66994617,0.00031846,2]
[385286683,1757748641009,-549.56471282,0.00031848,2]
[385286684,1757748641018,-627.24358398,0.00031849,2]
[385286685,1757748641028,-699.8172218,0.00031851,2]